fUST/lending_fUST_20240331
["ID","MTS","AMOUNT","RATE_DAILY","PERIOD"]
[321083349,1711888234728,-10000.0,0.000699,120]
[321083351,1711888234737,-13712.41422233,0.00069919,30]
[321083353,1711888234750,-13358.30265967,0.0007,120]
[321083355,1711888234761,-500.0,0.0007,120]
[321083357,1711888234772,-1000.0,0.0007,30]
[321083359,1711888234783,-995.0,0.0007,30]
[321083361,1711888234793,-10005.30215773,0.0007,60]
[321083363,1711888234804,-1524.28665318,0.0007,7]
[321083364,1711888234816,-151.0,0.0007,120]
[321083366,1711888234827,-5992.7,0.00072132,120]
[321083368,1711888234838,-160.838919,0.00072329,2]
[321083370,1711888234849,-2370.93959268,0.000739,2]
[321083373,1711888234860,-248.36,0.0007397,7]
[321083374,1711888234870,-150.5,0.0007398,7]
[321083376,1711888234881,-150.5,0.0007399,7]
[321083378,1711888234892,-24762.1881029,0.00074,120]
[321083380,1711888234904,-55474.34626195,0.00074,120]
[321083382,1711888234916,-1523.87664958,0.00074,120]
[321083384,1711888234930,-442.5454337,0.00074082,60]
[321083387,1711888234942,-350.0,0.00074747,120]
[321083389,1711888234953,-11027.74496146,0.000748,3]
[321083391,1711888234963,-150.5,0.0007497,35]
[321083393,1711888234974,-150.5,0.0007498,35]
[321083395,1711888234984,-150.5,0.0007499,35]
[321083397,1711888234995,-26370.15159426,0.00075,120]
[321083399,1711888235005,-901.23525105,0.00075,120]
[321083744,1711888238407,-22512.30399225,0.00075,120]
[321083751,1711888238464,-3938.75148142,0.00075,120]
[321083753,1711888238477,-2647.70927528,0.00075,120]
[321083755,1711888238486,-39.72349313,0.00076,120]
[321084503,1711888248400,-193.8971784,0.00076,120]
[321084505,1711888248410,-160.838919,0.00077717,2]
[321084507,1711888248420,-53724.0,0.00079,30]
[321084509,1711888248429,-992.73671411,0.00079999,7]
[321084511,1711888248438,-659.06465163,0.0008,50]
[321084513,1711888248447,-258.77925279,0.0008,120]
[321084515,1711888248456,-250.0,0.0008,120]
[321084517,1711888248466,-500.0,0.0008,120]
[321084519,1711888248474,-300.0,0.0008,105]
[321084521,1711888248484,-12761.67285014,0.00081,8]
[321084523,1711888248492,-300.0,0.000815,106]
[321084525,1711888248501,-501.60672795,0.00082191,120]
[321084527,1711888248510,-500.0,0.00082191,120]
[321084529,1711888248519,-501.11607818,0.00082191,120]
[321084531,1711888248528,-500.0,0.00082191,120]
[321084533,1711888248537,-500.0,0.00082191,120]
[321084535,1711888248546,-500.0,0.00082191,120]
[321084537,1711888248555,-500.0,0.00082191,120]
[321084539,1711888248564,-322.72311654,0.00082191,120]
[321084541,1711888248573,-500.0,0.00082191,120]
[321084543,1711888248582,-300.0,0.00083,107]
[321084545,1711888248591,-160.838919,0.00083105,120]
[321084546,1711888248600,-646.94580733,0.000834,120]
[321084548,1711888248609,-300.0,0.000845,108]
[321084551,1711888248619,-999.47355398,0.00085,120]
[321084553,1711888248628,-300.0,0.00086,109]
[321084554,1711888248637,-306.28547265,0.000875,110]
[321084557,1711888248647,-25006.20229614,0.00088,120]
[321084559,1711888248656,-160.838919,0.00088493,120]
[321084560,1711888248665,-150.4669125,0.000899,120]
[321084562,1711888248674,-1200.0,0.0009,30]
[321084565,1711888248684,-1118.87132061,0.0009,120]
[321084567,1711888248693,-652.0,0.0009,120]
[321084569,1711888248702,-151.0,0.00093726,120]
[321084571,1711888248711,-160.838919,0.00093881,120]
[321084573,1711888248720,-6037.84656322,0.0009488,60]
[321084575,1711888248729,-565.40066628,0.00097882,60]
[321084576,1711888248738,-1872.0,0.00099,120]
[321084578,1711888248748,-160.838919,0.0009927,120]
[321084580,1711888248757,-617.7,0.0009989,110]
[321084582,1711888248766,-5006.46629005,0.000999,120]
[321084584,1711888248775,-2301.20358139,0.000999,120]
[321084586,1711888248784,-6949.05943029,0.00099998,120]
[321084588,1711888248794,-1114.89272469,0.001,120]
[321084590,1711888248803,-1102.45007515,0.001,120]
[321084592,1711888248812,-43419.63846443,0.001,120]
[321084594,1711888248826,-50631.7892846,0.001,120]
[321084596,1711888248835,-160.838919,0.00104658,120]
[321084598,1711888248844,-160.838919,0.00110046,120]
[321084600,1711888248854,-160.838919,0.00115434,120]
[321084603,1711888248865,-151.0,0.00117452,120]
[321084605,1711888248874,-1115.8435026,0.0012,120]
[321084606,1711888248883,-160.838919,0.00120822,120]
[321084608,1711888248893,-160.838919,0.0012621,120]
[321084610,1711888248904,-160.838919,0.00131598,120]
[321084612,1711888248913,-176.544903,0.00136986,120]
[321084613,1711888248922,-315.350259,0.00136986,120]
[321084621,1711888249002,-160.838919,0.00136986,120]
[321084622,1711888249012,-476.49317231,0.0014,120]
[321084624,1711888249021,-151.0,0.00141178,120]
[321084626,1711888249029,-2000.0,0.001488,120]
[321084627,1711888249037,-250.0,0.00149999,28]
[321084629,1711888249046,-250.0,0.00149999,35]
[321084631,1711888249056,-764.78529047,0.00149999,14]
[321084633,1711888249065,-138090.24944313,0.0015,120]
[321084636,1711888249103,-484.246288,0.0015,120]
[321086228,1711888556162,150.0,0.00036001,2]
[321086232,1711889033781,703.67314381,0.00036001,2]
[321086233,1711889246162,-847.74654928,0.00038,2]
[321086234,1711889246186,-500.42066467,0.00040526,4]
[321086235,1711889246205,-504.44219198,0.00040526,4]
[321086236,1711889246224,-496.00899,0.00046575,2]
[321086237,1711889246244,-500.0,0.00065753,120]
[321086238,1711889246264,-2871.08379998,0.000748,3]
[321086239,1711889252093,-500.0,0.000748,3]
[321086243,1711889341454,-28874.62612441,0.000748,3]
[321086244,1711889341480,-500.0,0.0009863,120]
[321086245,1711889341507,-167.658928,0.00117247,2]
[321086246,1711889341532,-201.7586766,0.00124255,120]
[321086247,1711889341557,-2666.2591207,0.00130283,30]
[321086248,1711889341582,-166.666666,0.00136507,2]
[321086249,1711889341606,-496.00899,0.00136986,120]
[321086250,1711889341630,-4000.0,0.0014,120]
[321086251,1711889341657,-166.666666,0.00140229,2]
[321086252,1711889341682,-166.666666,0.00143951,2]
[321086253,1711889341708,-166.666666,0.00147672,2]
[321086254,1711889341733,-150.0,0.001479,7]
[321086255,1711889341759,-5000.0,0.00148,120]
[321086256,1711889341785,-157.59005674,0.00149899,120]
[321086257,1711889341811,-1000.0,0.001499,120]
[321086258,1711889341837,-157.59005674,0.001499,120]
[321086259,1711889341864,-5885.68,0.00149932,120]
[321086260,1711889341888,-500.0,0.00149999,120]
[321086261,1711889341913,-500.0,0.00149999,120]
[321086262,1711889341941,-500.0,0.00149999,120]
[321086263,1711889341965,-500.0,0.00149999,120]
[321086264,1711889341988,-500.0,0.00149999,120]
[321086265,1711889342013,-500.0,0.00149999,120]
[321086266,1711889342037,-500.0,0.00149999,120]
[321086267,1711889342062,-500.0,0.00149999,120]
[321086268,1711889342087,-500.0,0.00149999,120]
[321086269,1711889342112,-500.0,0.00149999,120]
[321086270,1711889342137,-500.0,0.00149999,120]
[321086271,1711889342161,-500.0,0.00149999,120]
[321086272,1711889342188,-500.0,0.00149999,120]
[321086273,1711889342215,-233.63285712,0.00149999,90]
[321086274,1711889342241,-338.33251589,0.00149999,120]
[321086275,1711889342267,-864.05,0.00149999,120]
[321086276,1711889342296,-864.05,0.00149999,120]
[321086277,1711889342433,-864.05,0.00149999,120]
[321086278,1711889342460,-864.05,0.00149999,120]
[321086279,1711889342486,-864.05,0.00149999,120]
[321086280,1711889342512,-864.05,0.00149999,120]
[321086281,1711889342537,-864.05,0.00149999,120]
[321086282,1711889342562,-864.05,0.00149999,120]
[321086283,1711889342587,-864.05,0.00149999,120]
[321086284,1711889342612,-864.05,0.00149999,120]
[321086285,1711889342637,-864.05,0.00149999,120]
[321086286,1711889342662,-318.32092996,0.00149999,120]
[321086287,1711889342688,-500.28198408,0.00149999,120]
[321086288,1711889342713,-501.15152073,0.00149999,120]
[321086289,1711889342739,-500.0,0.00149999,120]
[321086290,1711889342764,-500.0,0.00149999,120]
[321086291,1711889342788,-490.00000002,0.00149999,120]
[321086292,1711889342814,-10533.56342098,0.0015,61]
[321086293,1711889342838,-420156.32815403,0.0015,120]
[321086294,1711889347314,-733.83645982,0.0015,120]
[321086295,1711889347339,-16010.26739984,0.0015,120]
[321086296,1711889409551,500.0,0.0003,2]
[321086297,1711889409572,500.0,0.0003,2]
[321086298,1711889409593,654.35155621,0.0003,2]
[321086299,1711889409615,608.97669297,0.0003,2]
[321086300,1711889409641,37743.0798892,0.0003,2]
[321086301,1711889429558,11821.24104532,0.0003,2]
[321086375,1711889433563,-641.15569708,0.0011484,30]
[321086895,1711889438666,-205.67466498,0.0011484,30]
[321086897,1711889438675,-631.3415181,0.00120582,30]
[321086898,1711889438685,-620.56707591,0.00126611,30]
[321086899,1711889438694,-159437.86,0.00145,120]
[321086900,1711889438703,-182.87383057,0.001479,7]
[321086901,1711889438713,-200.22130727,0.001497,120]
[321086903,1711889438722,-1000.0,0.001499,120]
[321086905,1711889438730,-500.0,0.00149999,120]
[321086906,1711889438739,-500.0,0.00149999,120]
[321086907,1711889438748,-500.0,0.00149999,120]
[321086908,1711889438757,-500.0,0.00149999,120]
[321086909,1711889438766,-500.0,0.00149999,120]
[321086910,1711889438775,-500.0,0.00149999,120]
[321086911,1711889438784,-500.0,0.00149999,120]
[321086912,1711889438794,-500.0,0.00149999,120]
[321086913,1711889438803,-500.0,0.00149999,120]
[321086914,1711889438812,-500.0,0.00149999,120]
[321086915,1711889438822,-500.0,0.00149999,120]
[321086916,1711889438831,-500.0,0.00149999,120]
[321086917,1711889438840,-500.0,0.00149999,120]
[321086918,1711889438850,-500.0,0.00149999,120]
[321086919,1711889438859,-500.0,0.00149999,120]
[321086920,1711889438869,-500.0,0.00149999,120]
[321086921,1711889438878,-500.0,0.00149999,120]
[321086922,1711889438886,-500.0,0.00149999,120]
[321086924,1711889438895,-500.0,0.00149999,120]
[321086925,1711889438904,-500.0,0.00149999,120]
[321086927,1711889438913,-233.47707969,0.00149999,120]
[321086935,1711889439097,-266.52292031,0.00149999,120]
[321086936,1711889439107,-500.0,0.00149999,120]
[321086937,1711889439116,-500.0,0.00149999,120]
[321086938,1711889439125,-500.0,0.00149999,120]
[321086939,1711889439134,-500.0,0.00150683,120]
[321086940,1711889439143,-1000.0,0.00150684,7]
[321086941,1711889439154,-239.77247479,0.00150684,7]
[321087463,1711889444338,-1000.0,0.00150684,7]
[321087465,1711889444348,-1000.0,0.00150684,7]
[321087467,1711889444358,-427.92337766,0.00150684,7]
[321087697,1711890421683,200.0,0.00031,10]
[321087698,1711890451099,-657.29811272,0.0004,30]
[321087797,1711890637812,-248.26210361,0.000379,2]
[321087798,1711890637821,-3176.77030196,0.0004,30]
[321087870,1711890639963,-880.8220853,0.0004,30]
[321087872,1711890639972,-1122.73546566,0.0004075,2]
[321088178,1711890642936,-1629.08415715,0.0004075,2]
[321088191,1711890643044,-746.74785957,0.0004075,2]
[321090540,1711890965139,294.69724924,0.00032,2]
[321090541,1711891265241,294.69724924,0.00032,2]
[321090551,1711891633147,-403.06016219,0.0003855,2]
[321090552,1711891633168,-226.46601259,0.0003865,2]
[321090553,1711891633189,-21.51908897,0.0004,2]
[321090554,1711891636180,-139.31983123,0.0004,2]
[321090555,1711891636200,-159.37312703,0.00040343,2]
[321090556,1711891636307,-1478.95741259,0.0004075,2]
[321090557,1711891636329,-166.666666,0.00041096,2]
[321090558,1711891636350,-2859.90945762,0.00041983,2]
[321090559,1711891645116,-659.37312703,0.00041983,2]
[321090560,1711891650106,-636.3866209,0.00041983,2]
[321090572,1711891770153,-6017.63859468,0.00041983,2]
[321090586,1711891829369,-447.50729799,0.00045999,120]
[321090587,1711891829396,-500.0,0.00045999,120]
[321090588,1711891829422,-500.0,0.00045999,120]
[321090589,1711891829447,-223.37322678,0.00045999,120]
[321090590,1711891829473,-322.21983549,0.00045999,120]
[321090619,1711891832540,-150.97734173,0.00039883,2]
[321090621,1711891832550,-257.79285,0.00041983,2]
[321090623,1711891832559,-166.666666,0.00042148,2]
[321090625,1711891832568,-300.0,0.0004245,30]
[321090627,1711891832577,-166.666666,0.00043201,2]
[321090629,1711891832586,-736.9491096,0.00043409,2]
[321090631,1711891832595,-24900.0,0.00043438,2]
[321090633,1711891832604,-166.666666,0.00044254,2]
[321090635,1711891832614,-150.97734173,0.00044883,2]
[321090637,1711891832623,-166.666666,0.00045306,2]
[321090639,1711891832633,-45891.45138646,0.00046,120]
[321090641,1711891832642,-1163.80571635,0.00046259,2]
[321090643,1711891832651,-166.666666,0.00046359,2]
[321090645,1711891832660,-214.003457,0.00046575,2]
[321090647,1711891832670,-150.97734173,0.00049883,2]
[321090648,1711891832679,-150.84915085,0.0004993,2]
[321090649,1711891832689,-153.0,0.00049995,2]
[321090650,1711891832698,-202.0622477,0.00050132,2]
[321090652,1711891832707,-153.0,0.00050132,2]
[321090654,1711891832716,-442.5454337,0.00050406,2]
[321090656,1711891832725,-307.1961118,0.00050406,2]
[321090659,1711891832736,-301.6983017,0.00050769,4]
[321090661,1711891832746,-603.3966034,0.00051623,7]
[321090663,1711891832755,-166.82709291,0.0005249,4]
[321090665,1711891832765,-1206.79320679,0.00052929,30]
[321090667,1711891832774,-1163.80571632,0.00053419,2]
[321090669,1711891832783,-1163.80571632,0.0006058,2]
[321090671,1711891832793,-257.79285,0.00062974,30]
[321090673,1711891832802,-500.0,0.00065753,120]
[321090675,1711891832812,-169.477124,0.00066336,2]
[321090677,1711891832825,-1163.80571632,0.0006774,2]
[321090679,1711891832834,-151.0,0.0007,120]
[321090681,1711891832843,-10007.97586495,0.0007,120]
[321090683,1711891832851,-1000.0,0.000739,120]
[321090684,1711891832861,-74286.5643087,0.00074,120]
[321090687,1711891832871,-11027.74496146,0.000748,3]
[321090689,1711891832881,-150.84915085,0.00074895,2]
[321090691,1711891832890,-1163.80571632,0.000749,2]
[321090693,1711891832900,-1000.0,0.00075,2]
[321090695,1711891832909,-2041.61892402,0.00075,120]
[321090697,1711891832918,-2040.0,0.00076,120]
[321090699,1711891832927,-151.0,0.00095945,120]
[321090701,1711891832936,-7900.17256574,0.0009863,61]
[321090703,1711891832945,-288.39514177,0.0009863,120]
[321090704,1711891832954,-500.0,0.0009863,120]
[321090707,1711891832964,-500.0,0.0009863,120]
[321090709,1711891832973,-500.29710232,0.0009863,120]
[321090711,1711891832983,-507.74996895,0.0009863,120]
[321090713,1711891832993,-504.11743784,0.0009863,120]
[321090715,1711891833002,-500.0,0.0009863,120]
[321090716,1711891833011,-500.0,0.0009863,120]
[321090719,1711891833021,-316.35945025,0.0009863,120]
[321090721,1711891833030,-500.0,0.0009863,120]
[321090723,1711891833038,-500.0,0.0009863,120]
[321090725,1711891833048,-500.0,0.0009863,120]
[321090726,1711891833056,-500.0,0.0009863,120]
[321090728,1711891833066,-500.0,0.0009863,120]
[321090730,1711891833075,-500.0,0.0009863,120]
[321090732,1711891833084,-500.0,0.0009863,120]
[321090734,1711891833094,-500.0,0.0009863,120]
[321090737,1711891833103,-500.0,0.0009863,120]
[321090739,1711891833113,-500.0,0.0009863,120]
[321090741,1711891833122,-500.0,0.0009863,120]
[321090742,1711891833130,-500.0,0.0009863,120]
[321090745,1711891833140,-301.546,0.0009863,120]
[321090747,1711891833149,-500.0,0.0009863,120]
[321090749,1711891833158,-502.95398378,0.0009863,120]
[321090751,1711891833168,-1016.61,0.0009863,120]
[321090753,1711891833177,-1016.61,0.0009863,120]
[321090755,1711891833186,-1016.61,0.0009863,120]
[321090757,1711891833194,-1016.61,0.0009863,120]
[321090759,1711891833203,-1717.98,0.0009863,120]
[321090761,1711891833213,-1717.98,0.0009863,120]
[321090763,1711891833222,-1717.98,0.0009863,120]
[321090765,1711891833232,-1717.98,0.0009863,120]
[321090767,1711891833241,-500.0,0.0009863,120]
[321090769,1711891833250,-500.0,0.0009863,120]
[321090771,1711891833260,-500.0,0.0009863,120]
[321090773,1711891833269,-500.0,0.0009863,120]
[321090775,1711891833278,-500.0,0.0009863,120]
[321090777,1711891833287,-500.0,0.0009863,120]
[321090779,1711891833296,-500.56286046,0.0009863,120]
[321090781,1711891833305,-500.0,0.0009863,120]
[321090783,1711891833314,-363.45481887,0.0009863,120]
[321090785,1711891833324,-1079.92869762,0.00099,120]
[321090787,1711891833333,-1000.0,0.00099932,120]
[321090789,1711891833341,-1000.0,0.001,2]
[321090791,1711891833350,-500.0,0.00100252,120]
[321090793,1711891833359,-500.0,0.00100252,120]
[321090795,1711891833368,-500.0,0.00100252,120]
[321090797,1711891833377,-181.01898102,0.00112343,4]
[321090799,1711891833386,-151.0,0.0012189,120]
[321090801,1711891833395,-269.82214547,0.001275,120]
[321090803,1711891833404,-1000.0,0.0012922,120]
[321090805,1711891833414,-1000.0,0.00136469,120]
[321090807,1711891833423,-1000.0,0.00136469,120]
[321090808,1711891833431,-806.11,0.00136986,120]
[321090810,1711891833441,-806.11,0.00136986,120]
[321090811,1711891833450,-214.003457,0.00136986,120]
[321090812,1711891833459,-37972.24,0.00145,120]
[321090813,1711891833468,-6107.78,0.001464,120]
[321090814,1711891833478,-1000.0,0.00146469,120]
[321090815,1711891833487,-1000.0,0.00146469,120]
[321090816,1711891833496,-1000.0,0.00146469,120]
[321090817,1711891833505,-5992.69999999,0.00146469,120]
[321090818,1711891833515,-1000.0,0.001469,120]
[321090819,1711891833524,-1000.0,0.00147094,120]
[321090820,1711891833534,-151.0,0.00147836,120]
[321090821,1711891833542,-500.0,0.00147998,120]
[321090822,1711891833551,-1016.61,0.00147998,120]
[321090823,1711891833560,-1717.98,0.00147998,120]
[321090824,1711891833569,-500.0,0.00147998,120]
[321090825,1711891833578,-806.11,0.00147999,120]
[321090826,1711891833588,-500.0,0.00147999,120]
[321090827,1711891833597,-500.0,0.00147999,120]
[321090828,1711891833606,-239.20342279,0.00147999,120]
[321090829,1711891833615,-500.0,0.00147999,120]
[321090830,1711891833624,-500.0,0.00147999,120]
[321090832,1711891833634,-1016.61,0.00147999,120]
[321090834,1711891833643,-1717.98,0.00147999,120]
[321090836,1711891833652,-500.0,0.00147999,120]
[321090838,1711891833660,-500.0,0.00147999,120]
[321090840,1711891833669,-31651.852206,0.00148,120]
[321090842,1711891833679,-2348.10411916,0.00148921,120]
[321090844,1711891833688,-2348.10411916,0.00148949,120]
[321090845,1711891833697,-2348.10411916,0.0014901,120]
[321090846,1711891833706,-2348.10411916,0.00149043,120]
[321090847,1711891833715,-500.0,0.00149078,120]
[321090848,1711891833724,-500.0,0.00149078,120]
[321090849,1711891833734,-442.18401679,0.00149078,120]
[321090850,1711891833744,-2348.10411916,0.0014908,120]
[321090851,1711891833753,-806.11,0.00149124,120]
[321090852,1711891833763,-498.8,0.00149124,120]
[321090853,1711891833771,-2348.10411916,0.00149124,120]
[321090854,1711891833781,-2348.10411916,0.00149159,120]
[321090855,1711891833790,-806.11,0.00149979,120]
[321090856,1711891833800,-500.0,0.00149979,120]
[321090857,1711891833809,-500.0,0.00149979,120]
[321090858,1711891833823,-437.94234707,0.00149979,120]
[321090859,1711891833833,-1016.61,0.00149979,120]
[321090860,1711891833842,-1717.98,0.00149979,120]
[321090861,1711891833852,-500.0,0.00149979,120]
[321090862,1711891833862,-30247.38700001,0.0014998,120]
[321090863,1711891833871,-1000.0,0.00150684,7]
[321090864,1711891833881,-1000.0,0.00150684,7]
[321090865,1711891833890,-1000.0,0.00150684,7]
[321090866,1711891833901,-1000.0,0.00150684,7]
[321090867,1711891833912,-1000.0,0.00150684,7]
[321090868,1711891833921,-1000.0,0.00150684,7]
[321090869,1711891833930,-1000.0,0.00150684,7]
[321090870,1711891833940,-160.0,0.00166773,5]
[321090871,1711891833949,-217.22277722,0.00168514,7]
[321090872,1711891833958,-151.0,0.00173781,120]
[321090873,1711891833968,-4000.0,0.0019,120]
[321090874,1711891833978,-157.00941057,0.00192,120]
[321090875,1711891833988,-3116.01209689,0.00198,30]
[321090876,1711891833997,-151.0,0.00199726,120]
[321090877,1711891834007,-1000.0,0.002,120]
[321090878,1711891834016,-500.0,0.00202739,120]
[321090879,1711891834024,-151.0,0.00225671,120]
[321090880,1711891834034,-1000.0,0.002469,120]
[321090881,1711891834043,-151.0,0.00251616,120]
[321090882,1711891834053,-260.66733267,0.00252772,30]
[321090883,1711891834062,-1111.0,0.00265,111]
[321090884,1711891834071,-176.931866,0.00273973,120]
[321090885,1711891834080,-151.0,0.00273973,120]
[321090886,1711891834090,-151.0,0.00273973,120]
[321090887,1711891834099,-252.968606,0.00273973,120]
[321090888,1711891834108,-151.0,0.00277562,120]
[321090889,1711891834117,-1000.0,0.00278698,7]
[321090890,1711891834127,-1016.61,0.00278698,120]
[321090891,1711891834137,-1717.98,0.00278698,120]
[321090892,1711891834146,-500.0,0.00278698,120]
[321090893,1711891834156,-6107.78,0.00278699,120]
[321090894,1711891834167,-1219.70219591,0.00279854,120]
[321090895,1711891834177,-500.0,0.00279998,120]
[321090896,1711891834187,-500.0,0.00279998,120]
[321090897,1711891834196,-4999.999999,0.0028,120]
[321090898,1711891834205,-200000.0,0.002888,120]
[321090899,1711891834215,-806.11,0.00288999,120]
[321090900,1711891834224,-157.14066175,0.00289,120]
[321090901,1711891834235,-1000.0,0.00289999,7]
[321090902,1711891834244,-1016.61,0.00289999,120]
[321090903,1711891834254,-1717.98,0.00289999,120]
[321090904,1711891834263,-500.0,0.00289999,120]
[321090905,1711891834272,-25000.0,0.0029,120]
[321090906,1711891834282,-153.0,0.0029137,120]
[321090907,1711891834291,-153.0,0.0029137,120]
[321090908,1711891834300,-153.0,0.0029137,120]
[321090909,1711891834309,-153.0,0.0029137,120]
[321090910,1711891834318,-500.0,0.00299998,120]
[321090911,1711891834327,-500.0,0.00299998,120]
[321090912,1711891834337,-806.11,0.00299999,120]
[321090913,1711891834346,-1000.0,0.00299999,7]
[321090914,1711891834354,-1016.61,0.00299999,120]
[321090915,1711891834363,-1717.98,0.00299999,120]
[321090916,1711891834373,-500.0,0.00299999,120]
[321090917,1711891834382,-2000.0,0.003,120]
[321090918,1711891834392,-30098.38358836,0.003,120]
[321090919,1711891834401,-151.0,0.00303507,120]
[321090920,1711891834410,-151.0,0.00329452,120]
[321090921,1711891834419,-1111.0,0.0033,111]
[321090922,1711891834428,-500.0,0.00339726,120]
[321090923,1711891834437,-1000.0,0.003469,120]
[321090924,1711891834446,-1000.0,0.0035,120]
[321090925,1711891834455,-151.0,0.00355397,120]
[321090926,1711891834464,-312.8007992,0.00379158,120]
[321090927,1711891834473,-151.0,0.00381342,120]
[321090928,1711891834483,-157.00941057,0.00385,120]
[321090929,1711891834493,-1111.0,0.00387,111]
[321090930,1711891834502,-10000.27408892,0.0039,120]
[321090931,1711891834511,-500.0,0.00395998,120]
[321090932,1711891834520,-500.0,0.00395998,120]
[321090933,1711891834529,-5006.27134176,0.00396,120]
[321090934,1711891834538,-1000.0,0.00399679,120]
[321090935,1711891834547,-806.11,0.00399985,120]
[321090936,1711891834556,-806.11,0.00399986,120]
[321090937,1711891834567,-500.0,0.00399986,120]
[321090938,1711891834576,-500.0,0.00399986,120]
[321090939,1711891834586,-1000.0,0.00399986,7]
[321090940,1711891834596,-1016.61,0.00399986,120]
[321090941,1711891834605,-1717.98,0.00399986,120]
[321090942,1711891834614,-500.0,0.00399986,120]
[321090943,1711891834624,-50000.0,0.00399987,120]
[321090944,1711891834633,-3533.98701449,0.00399998,120]
[321090945,1711891834642,-502.0,0.004,120]
[321090946,1711891834651,-151.0,0.00407288,120]
[321090947,1711891834659,-233.54710604,0.00407586,120]
[321090948,1711891834668,-500.0,0.00407586,120]
[321090949,1711891834676,-1000.0,0.00407586,7]
[321090950,1711891834685,-1016.61,0.00407586,120]
[321090951,1711891834694,-1717.98,0.00407586,120]
[321090952,1711891834703,-500.0,0.00407586,120]
[321090953,1711891834712,-6107.78,0.00407587,120]
[321090954,1711891834721,-500.0,0.00427475,120]
[321090955,1711891834732,-151.0,0.00433233,120]
[321090956,1711891834815,-806.11,0.00439999,120]
[321090957,1711891834825,-10970.01004148,0.0044,120]
[321090958,1711891834834,-219.31554674,0.00444996,30]
[321090959,1711891834843,-157.72421345,0.00444998,30]
[321090960,1711891834852,-198.53290104,0.00444998,30]
[321090961,1711891834861,-253.1409202,0.00444998,30]
[321090962,1711891834871,-151.0,0.00459178,120]
[321090963,1711891834880,-515.67622861,0.00476712,120]
[321090964,1711891834890,-226.22299469,0.00481,120]
[321090965,1711891834899,-151.0,0.00485123,120]
[321090966,1711891834908,-250.0,0.0049,120]
[321090967,1711891834917,-8000.0,0.0049,120]
[321090968,1711891834926,-2019.61418204,0.00510651,77]
[321090969,1711891834935,-151.0,0.00511068,120]
[321090970,1711891834944,-805.56338879,0.00516071,120]
[321090971,1711891834953,-512.7,0.00525,14]
[321090972,1711891834962,-6107.78,0.00536475,120]
[321090973,1711891834971,-151.0,0.00537014,120]
[321090974,1711891834980,-151.0,0.00562959,120]
[321090975,1711891834989,-157.19729293,0.00577,120]
[321090976,1711891834998,-151.0,0.00588904,120]
[321090977,1711891835008,-324.62820725,0.006,120]
[321090978,1711891835017,-500.0,0.006,120]
[321090979,1711891835026,-805.56338879,0.00614287,120]
[321090980,1711891835036,-151.0,0.00614849,120]
[321090981,1711891835045,-151.0,0.00640795,120]
[321090982,1711891835054,-1000.0,0.006469,120]
[321090983,1711891835064,-1000.0,0.006469,120]
[321090984,1711891835074,-1000.0,0.006469,120]
[321090985,1711891835083,-151.0,0.006538,120]
[321090986,1711891835092,-1000.0,0.00665361,7]
[321090987,1711891835102,-1016.61,0.00665361,120]
[321090988,1711891835111,-1717.98,0.00665361,120]
[321090989,1711891835120,-500.0,0.00665361,120]
[321090990,1711891835129,-500.0,0.00665362,120]